bitfinex/quotes_BTCUSD_20220213
["timestamp","ask_amount","ask_price","bid_price","bid_amount"]
[1644763224349,0.00043592,42395.0,42394.0,0.331608]
[1644763224796,0.07244572,42399.0,42392.0,0.25076044]
[1644763224997,0.07244572,42399.0,42395.0,0.20062248]
[1644763225395,0.07244572,42399.0,42394.0,0.20062248]
[1644763225595,0.22082512,42402.0,42394.0,0.20062248]
[1644763225794,0.49506862,42402.0,42394.0,0.20062248]
[1644763226094,0.20304108,42401.0,42394.0,0.20062248]
[1644763226394,0.20304108,42401.0,42394.0,0.25958948]
[1644763226795,0.08769212,42397.0,42394.0,0.25958948]
[1644763226997,0.08769212,42397.0,42394.0,0.058967]
[1644763227393,0.08769212,42397.0,42394.0,0.20062248]
[1644763227595,0.49506862,42402.0,42394.0,0.20062248]
[1644763227794,0.00017331,42398.0,42394.0,0.20062248]
[1644763228449,0.00017331,42398.0,42395.0,0.058966]
[1644763228649,0.07309235,42398.0,42395.0,0.058966]
[1644763228851,0.07291904,42398.0,42395.0,0.25958848]
[1644763229049,0.07291904,42398.0,42395.0,0.058966]
[1644763229654,0.07291904,42398.0,42395.0,0.06034219]
[1644763229951,0.26441156,42398.0,42395.0,0.26096467]
[1644763230152,0.26441156,42398.0,42395.0,0.00137619]
[1644763230153,0.331608,42397.0,42395.0,0.00137619]
[1644763230352,0.431608,42397.0,42395.0,0.00137619]
[1644763230551,0.431608,42397.0,42389.0,0.009437]
[1644763230552,0.07359583,42392.0,42389.0,0.009437]
[1644763230751,0.29935599,42397.0,42389.0,0.009437]
[1644763230752,0.4,42397.0,42389.0,0.009437]
[1644763230951,0.00023921,42395.0,42389.0,0.009437]
[1644763231153,0.28022934,42394.0,42389.0,0.009437]
[1644763231350,0.20716704,42391.0,42389.0,0.009437]
[1644763232297,0.07516491,42390.0,42389.0,0.009437]
[1644763232494,0.36264368,42390.0,42389.0,0.004437]
[1644763232893,0.17516491,42390.0,42389.0,0.004437]
[1644763233093,0.07516491,42390.0,42389.0,0.004437]
[1644763233494,0.07516491,42390.0,42389.0,0.20505948]
[1644763234796,0.35022166,42390.0,42389.0,0.004437]
[1644763234998,0.07588377,42390.0,42389.0,0.004437]
[1644763235394,0.07588377,42390.0,42388.0,0.20065444]
[1644763238148,0.07588377,42390.0,42387.0,0.20065444]
[1644763238547,0.07588377,42390.0,42388.0,0.20065444]
[1644763239248,0.35114194,42390.0,42388.0,0.20065444]
[1644763239496,0.35105559,42390.0,42388.0,0.20065444]
[1644763239696,0.35105559,42390.0,42387.0,0.20114477]
[1644763239895,0.35532853,42390.0,42387.0,0.20114477]
[1644763240105,0.331608,42389.0,42387.0,0.00049033]
[1644763240298,0.313691,42388.0,42387.0,0.00049033]
[1644763240795,0.413691,42388.0,42386.0,0.23]
[1644763240995,0.58548463,42387.0,42386.0,0.23]
[1644763241197,0.93548463,42387.0,42378.0,0.50065444]
[1644763241396,0.93548463,42387.0,42378.0,0.20065444]
[1644763241397,0.05,42381.0,42378.0,0.20065444]
[1644763241599,0.05,42381.0,42375.0,0.20065444]
[1644763241600,0.06386205,42379.0,42375.0,0.20065444]
[1644763241801,0.263691,42378.0,42375.0,0.20065444]
[1644763241996,0.263691,42378.0,42374.0,0.20065444]
[1644763242197,0.46101853,42377.0,42374.0,0.20065444]
[1644763242398,0.331608,42376.0,42374.0,0.20065444]
[1644763242798,0.431608,42376.0,42374.0,0.20065444]
[1644763243445,0.431608,42376.0,42372.0,0.25081805]
[1644763243446,0.27459027,42375.0,42373.0,0.00047089]
[1644763243649,0.263691,42374.0,42373.0,0.00047089]
[1644763243843,0.13332731,42374.0,42373.0,0.00047089]
[1644763244252,0.95,42373.0,42369.0,0.19172533]
[1644763244450,0.24719362,42367.0,42365.0,0.25081805]
[1644763244648,0.26189213,42369.0,42365.0,0.25081805]
[1644763244850,0.1,42370.0,42366.0,0.25081805]
[1644763245047,0.1,42370.0,42367.0,0.25081805]
[1644763245249,0.331603,42369.0,42366.0,0.25081805]
[1644763245447,0.331603,42368.0,42365.0,0.25081805]
[1644763245648,0.37648031,42370.0,42365.0,0.48081805]
[1644763245649,0.27480403,42367.0,42365.0,0.48081805]
[1644763245849,0.1994166,42369.0,42365.0,0.48081805]
[1644763246049,0.331603,42368.0,42365.0,0.48081805]
[1644763246248,0.1994166,42369.0,42365.0,0.48081805]
[1644763246450,0.1,42368.0,42365.0,0.23]
[1644763246848,0.331603,42367.0,42365.0,0.23]
[1644763247096,0.1994166,42369.0,42364.0,0.0011866]
[1644763247798,0.2584366,42369.0,42364.0,0.0011866]
[1644763247997,0.133333,42365.0,42364.0,0.0011866]
[1644763248200,0.133333,42365.0,42364.0,0.00167616]
[1644763249200,0.55,42364.0,42358.0,0.009444]
[1644763249402,0.39063,42363.0,42362.0,0.00048957]
[1644763249898,0.49063,42363.0,42362.0,0.00048957]
[1644763250100,0.72625879,42363.0,42362.0,0.00048957]
[1644763250304,0.39465579,42363.0,42362.0,0.00048957]
[1644763250499,0.39465579,42363.0,42358.0,0.009444]
[1644763250500,0.37482293,42362.0,42358.0,0.009444]
[1644763250750,0.37482293,42362.0,42360.0,0.00048959]
[1644763250947,0.28716216,42361.0,42360.0,0.00048959]
[1644763251149,0.1,42367.0,42360.0,0.00048959]
[1644763251351,0.05,42373.0,42360.0,0.00048959]
[1644763251352,0.3,42372.0,42361.0,0.331603]
[1644763251551,0.5754,42379.0,42362.0,0.118009]
[1644763251552,0.3,42376.0,42362.0,0.118009]
[1644763251749,0.3,42376.0,42363.0,0.00048957]
[1644763252151,0.08579046,42368.0,42363.0,0.00048957]
[1644763252751,0.08579046,42368.0,42358.0,0.118017]
[1644763252956,0.07430102,42359.0,42355.0,0.0011]
[1644763253352,0.07430102,42359.0,42356.0,0.331603]
[1644763255098,0.07430102,42359.0,42355.0,0.00158963]
[1644763255296,0.07430102,42359.0,42358.0,0.331603]
[1644763255501,0.07430102,42359.0,42356.0,0.331603]
[1644763255895,0.07430102,42359.0,42358.0,0.331603]
[1644763256095,0.07430102,42359.0,42356.0,0.331603]
[1644763256299,0.07430102,42359.0,42355.0,0.00158963]
[1644763256498,0.07430102,42359.0,42355.0,0.0011]
[1644763256697,0.07430102,42359.0,42355.0,0.00158963]
[1644763257296,0.18957014,42362.0,42355.0,0.00158963]
[1644763257498,0.18957014,42362.0,42354.0,0.05902]
[1644763257798,0.18957014,42362.0,42355.0,0.351603]
[1644763258001,0.1,42365.0,42355.0,0.351603]
[1644763258002,0.27478902,42364.0,42355.0,0.351603]
[1644763258260,0.57474192,42367.0,42355.0,0.079013]
[1644763258460,0.08752795,42366.0,42355.0,0.079013]
[1644763258659,0.08752795,42366.0,42357.0,0.059015]
[1644763259262,0.3234242,42375.0,42358.0,0.331603]
[1644763259463,0.1883,42376.0,42360.0,0.118011]
[1644763259464,0.46154414,42376.0,42360.0,0.118011]
[1644763259662,0.46154414,42376.0,42361.0,0.059006]
[1644763260160,0.19697286,42374.0,42361.0,0.059006]
[1644763260360,0.00048949,42371.0,42361.0,0.059006]
[1644763260567,0.08600886,42370.0,42362.0,0.059005]
[1644763260862,0.08600886,42370.0,42364.0,0.059004]
[1644763261062,0.00048949,42371.0,42364.0,0.059004]
[1644763261269,0.6754,42379.0,42365.0,0.631603]
[1644763261270,0.6352,42377.0,42365.0,0.631603]
[1644763261471,0.00048951,42369.0,42366.0,0.03598599]
[1644763261666,0.00048951,42369.0,42368.0,1.3871]
[1644763261898,0.00048951,42369.0,42368.0,0.522703]
[1644763262499,0.06411119,42380.0,42368.0,0.522703]
[1644763262500,0.06411119,42380.0,42368.0,0.472703]
[1644763262698,0.06411119,42380.0,42371.0,0.058998]
[1644763262898,0.00195768,42377.0,42372.0,0.331603]
[1644763263101,0.00195768,42377.0,42372.0,0.381603]
[1644763263296,0.00195768,42377.0,42372.0,0.431603]
[1644763263498,0.00195768,42377.0,42372.0,0.331603]
[1644763263703,0.07086408,42373.0,42369.0,0.359001]
[1644763263899,0.07086408,42373.0,42369.0,0.1]
[1644763263900,0.22344763,42372.0,42369.0,0.1]
[1644763264101,0.22344763,42372.0,42370.0,0.331603]
[1644763264399,0.22344763,42372.0,42366.0,0.331603]
[1644763265199,0.00048895,42371.0,42367.0,0.059004]
[1644763265401,0.0002598,42371.0,42368.0,0.331603]
[1644763265607,0.0002598,42371.0,42367.0,0.059004]
[1644763265608,0.53565134,42366.0,42363.0,0.2671]
[1644763265850,0.07496454,42364.0,42363.0,0.2671]
[1644763267248,0.06431601,42364.0,42363.0,0.2671]
[1644763267950,0.06214262,42364.0,42363.0,0.2871]
[1644763268750,0.06152683,42364.0,42363.0,0.2871]
[1644763269049,0.24416654,42365.0,42363.0,0.2871]
[1644763271095,0.24416654,42365.0,42363.0,0.2821]
[1644763271696,0.24416654,42365.0,42363.0,0.341109]
[1644763271898,0.53565134,42366.0,42363.0,0.02]
[1644763272104,0.53565134,42366.0,42364.0,0.331603]
[1644763272498,0.53565134,42366.0,42365.0,0.04217954]
[1644763272698,0.53565134,42366.0,42365.0,0.43278154]
[1644763273368,0.53565134,42366.0,42365.0,1.977702]
[1644763274858,0.41805134,42366.0,42365.0,1.977702]
[1644763275258,0.41805134,42366.0,42365.0,0.731702]
[1644763275760,0.41805134,42366.0,42365.0,0.631702]
[1644763276162,0.41805134,42366.0,42365.0,0.626702]
[1644763276360,0.41805134,42366.0,42365.0,2.022702]
[1644763276859,0.41805134,42366.0,42365.0,2.29218768]
[1644763277503,0.41805134,42366.0,42365.0,2.49198768]
[1644763277704,0.41805134,42366.0,42365.0,2.222502]
[1644763278105,0.41805134,42366.0,42365.0,2.022702]
[1644763278509,0.41805134,42366.0,42365.0,0.726702]
[1644763279904,0.41805134,42366.0,42365.0,0.626702]
[1644763280604,0.41805134,42366.0,42365.0,1.872702]
[1644763280847,0.41805134,42366.0,42365.0,1.972702]
[1644763281449,0.41805134,42366.0,42365.0,0.726702]
[1644763281851,0.41805134,42366.0,42365.0,0.626702]
[1644763282056,0.41805134,42366.0,42365.0,0.1]
[1644763282252,0.41805134,42366.0,42363.0,0.02]
[1644763282854,0.22995499,42365.0,42363.0,0.02]
[1644763283053,0.41805134,42366.0,42364.0,0.331603]
[1644763283253,0.41805134,42366.0,42365.0,0.059007]
[1644763283453,0.41805134,42366.0,42365.0,0.39061]
[1644763285096,0.41805134,42366.0,42365.0,0.49061]
[1644763285698,0.41805134,42366.0,42365.0,0.53943972]
[1644763286301,0.41805134,42366.0,42365.0,0.53316955]
[1644763286497,0.41805134,42366.0,42365.0,0.49061]
[1644763286699,0.41805134,42366.0,42365.0,0.78038472]
[1644763286898,0.41805134,42366.0,42365.0,1.08136638]
[1644763287501,0.41805134,42366.0,42365.0,0.59061]
[1644763287698,0.41805134,42366.0,42365.0,0.79041]
[1644763288349,0.41805134,42366.0,42365.0,0.59061]
[1644763288651,0.41805134,42366.0,42365.0,2.28374594]
[1644763288855,0.41805134,42366.0,42365.0,0.83774594]
[1644763289052,0.41805134,42366.0,42365.0,0.39061]
[1644763289450,0.41805134,42366.0,42365.0,0.69148712]
[1644763289651,0.41805134,42366.0,42365.0,0.39061]
[1644763290051,0.41805134,42366.0,42365.0,1.83641]
[1644763290252,0.41805134,42366.0,42365.0,2.09325622]
[1644763290453,0.41805134,42366.0,42365.0,2.15939336]
[1644763290653,0.41805134,42366.0,42365.0,4.2484011]
[1644763291657,0.32192101,42366.0,42365.0,4.2484011]
[1644763292099,0.32192101,42366.0,42365.0,4.25432764]
[1644763292296,0.32192101,42366.0,42365.0,4.86413238]
[1644763292504,0.32192101,42366.0,42365.0,5.36413238]
[1644763293100,0.0004906,42373.0,42367.0,1.246]
[1644763293305,0.00196222,42377.0,42372.0,2.43748367]
[1644763293506,0.00196222,42377.0,42376.0,1.246]
[1644763293702,0.00196222,42377.0,42376.0,1.99461164]
[1644763294008,0.3,42389.0,42378.0,1.246]
[1644763294200,0.3,42389.0,42380.0,0.117944]
[1644763294400,0.37916878,42389.0,42381.0,0.331603]
[1644763294598,0.37916878,42389.0,42382.0,0.05]
[1644763294798,0.37916878,42389.0,42383.0,0.381603]
[1644763294998,0.6034,42390.0,42384.0,0.331603]
[1644763295198,0.21886755,42392.0,42384.0,0.331603]
[1644763295399,0.21886755,42392.0,42386.0,0.058977]
[1644763295598,0.24082578,42388.0,42387.0,0.331603]
[1644763295854,0.14481855,42386.0,42384.0,0.05]
[1644763296055,0.14481855,42386.0,42385.0,0.331514]
[1644763296456,0.14481855,42386.0,42385.0,0.390496]
[1644763296667,0.21445976,42380.0,42375.0,0.4406443]
[1644763296857,0.30382221,42380.0,42376.0,1.0]
[1644763297056,0.30382221,42380.0,42376.0,1.03933393]
[1644763297254,0.21445976,42380.0,42376.0,1.0]
[1644763297656,0.21495089,42380.0,42376.0,1.0]
[1644763297958,0.00049113,42380.0,42379.0,0.331514]
[1644763298555,0.07930367,42384.0,42377.0,0.03690041]
[1644763298759,0.25690757,42384.0,42378.0,0.331514]
[1644763299059,0.00049112,42382.0,42380.0,0.331514]
[1644763299701,0.14481855,42386.0,42380.0,0.331514]
[1644763299902,0.22848748,42384.0,42379.0,0.117968]
[1644763300102,0.0799009,42381.0,42380.0,0.390498]
[1644763300303,0.0799009,42381.0,42380.0,0.331514]
[1644763300507,0.00049111,42383.0,42380.0,0.331514]
[1644763300508,0.00049111,42383.0,42380.0,0.390497]
[1644763300807,0.00049111,42383.0,42382.0,0.04066843]
[1644763301003,0.14481855,42386.0,42382.0,0.37218243]
[1644763301205,0.00049111,42384.0,42380.0,0.03724828]
[1644763301405,0.00049111,42384.0,42382.0,0.117958]
[1644763301606,0.00049111,42384.0,42383.0,0.390493]
[1644763301810,0.00049111,42384.0,42383.0,0.058979]
[1644763302206,0.14481855,42386.0,42383.0,0.058979]
[1644763302505,0.14530964,42386.0,42383.0,0.058979]
[1644763303356,0.14481855,42386.0,42374.0,0.5]
[1644763303552,0.07088219,42375.0,42372.0,0.831514]
[1644763303751,0.07088219,42375.0,42374.0,0.331514]
[1644763304152,0.3097826,42384.0,42374.0,0.331514]
[1644763304360,0.25172894,42380.0,42374.0,0.117981]
[1644763304656,0.44258432,42380.0,42374.0,0.117981]
[1644763305451,0.44258432,42380.0,42374.0,0.176971]
[1644763305452,0.06574076,42379.0,42374.0,0.176971]
[1644763305652,0.25172894,42380.0,42376.0,0.331514]
[1644763305852,0.25172894,42380.0,42377.0,0.4312302]
[1644763306053,0.0004917,42379.0,42377.0,0.0997162]
[1644763306251,0.00038683,42379.0,42378.0,0.331514]
[1644763307112,0.6294,42385.0,42380.0,0.058984]
[1644763307310,0.14481855,42386.0,42380.0,0.058984]
[1644763308110,0.08570102,42382.0,42380.0,0.058984]
[1644763308511,0.00017408,42385.0,42380.0,0.058984]
[1644763308909,0.00017408,42385.0,42380.0,0.117968]
[1644763309309,0.14481855,42386.0,42380.0,0.117968]
[1644763309514,0.14481855,42386.0,42381.0,0.058984]
[1644763309710,0.00049166,42385.0,42381.0,0.058984]
[1644763310312,0.08483403,42383.0,42381.0,0.058984]
[1644763311451,0.00049166,42384.0,42381.0,0.058984]
[1644763311851,0.14481855,42386.0,42381.0,0.058984]
[1644763312057,0.00049166,42385.0,42381.0,0.058984]
[1644763312652,0.08632707,42385.0,42381.0,0.058984]
[1644763313055,0.08632707,42385.0,42381.0,0.117965]
[1644763313056,0.08583541,42385.0,42381.0,0.117965]
[1644763313254,0.08632706,42385.0,42381.0,0.058984]
[1644763313455,0.00049165,42385.0,42381.0,0.058984]
[1644763313854,0.00049165,42385.0,42381.0,0.078984]
[1644763314256,0.14481855,42386.0,42381.0,0.078984]
[1644763314507,0.00049165,42385.0,42381.0,0.078984]
[1644763315100,0.06312741,42383.0,42381.0,0.078984]
[1644763315301,0.06312741,42383.0,42381.0,0.02]
[1644763316502,0.05812741,42383.0,42381.0,0.02]
[1644763317000,0.05812741,42383.0,42381.0,0.078986]
[1644763317201,0.05812741,42383.0,42381.0,0.02]
[1644763318448,0.05812741,42383.0,42381.0,0.078987]
[1644763318648,0.05812741,42383.0,42381.0,0.02]
[1644763322406,0.331514,42382.0,42381.0,0.02]
[1644763322616,0.381514,42382.0,42381.0,0.02]
[1644763322803,0.481514,42382.0,42381.0,0.02]
[1644763323206,0.540515,42382.0,42381.0,0.02]
[1644763324405,0.490515,42382.0,42381.0,0.02]
[1644763324604,0.78667353,42382.0,42381.0,0.02]
[1644763325849,0.08963086,42375.0,42372.0,0.058999]
[1644763326250,0.08963086,42375.0,42369.0,0.059004]
[1644763326650,0.08963086,42375.0,42368.0,0.00045577]
[1644763326851,0.22306916,42374.0,42368.0,0.00045577]
[1644763327052,0.24346977,42372.0,42368.0,0.00045577]
[1644763327256,0.61625868,42371.0,42368.0,0.00045577]
[1644763327454,0.61625868,42371.0,42363.0,0.3007366]
[1644763327455,0.28474468,42371.0,42364.0,0.5]
[1644763327650,0.28474468,42371.0,42368.0,0.00045576]
[1644763327651,0.331514,42370.0,42368.0,0.00045576]
[1644763327853,0.60831502,42369.0,42368.0,0.00045576]
[1644763328053,0.331514,42369.0,42368.0,0.00045576]
[1644763328649,0.331514,42369.0,42363.0,0.5]
[1644763328850,0.40882047,42368.0,42366.0,0.00046138]
[1644763329050,0.22364759,42367.0,42366.0,0.00046138]
[1644763329252,0.07730647,42368.0,42366.0,0.00046138]
[1644763329515,0.13426231,42376.0,42366.0,0.00046138]
[1644763329516,0.03426231,42376.0,42366.0,0.00046138]
[1644763329712,0.03426231,42376.0,42366.0,0.30119798]
[1644763329910,0.03426231,42376.0,42367.0,0.3007366]
[1644763330110,0.03426231,42376.0,42368.0,0.00046137]
[1644763330310,0.25273561,42376.0,42370.0,0.058998]
[1644763330516,0.0880046,42374.0,42370.0,0.058998]
[1644763334055,0.0880046,42374.0,42368.0,0.05946621]
[1644763334255,0.24750031,42369.0,42368.0,0.05946621]
[1644763334555,0.0880046,42374.0,42368.0,0.30979366]
[1644763334758,0.0880046,42374.0,42369.0,0.25078766]
[1644763334955,0.03426231,42376.0,42370.0,0.25078766]
[1644763335159,0.03426231,42376.0,42371.0,0.25078766]
[1644763335559,0.25412433,42375.0,42371.0,0.25078766]
[1644763335756,0.25412433,42375.0,42371.0,0.27078766]
[1644763336357,0.08126058,42374.0,42371.0,0.27078766]
[1644763336759,0.08126058,42374.0,42372.0,0.30978566]
[1644763337025,0.25412433,42375.0,42372.0,0.30978566]
[1644763337418,0.331514,42374.0,42370.0,0.25078766]
[1644763337616,0.331514,42374.0,42368.0,0.30119698]
[1644763337617,0.25412433,42375.0,42369.0,0.25078766]
[1644763337816,0.25412433,42375.0,42368.0,0.25124804]
[1644763338219,0.25412433,42375.0,42368.0,0.25078766]
[1644763338418,0.25412433,42375.0,42368.0,0.25124804]
[1644763338617,0.08169204,42372.0,42368.0,0.25124804]
[1644763338818,0.03426231,42376.0,42368.0,0.31025404]
[1644763339218,0.03426231,42376.0,42369.0,0.25078766]
[1644763339417,0.03426231,42376.0,42368.0,0.04441211]
[1644763339618,0.03426231,42376.0,42368.0,0.00046036]
[1644763339918,0.03426231,42376.0,42371.0,0.058999]
[1644763340518,0.07279094,42373.0,42371.0,0.058999]
[1644763343358,0.03426231,42376.0,42371.0,0.058999]
[1644763344604,0.03426231,42376.0,42371.0,0.30978861]
[1644763345004,0.03426231,42376.0,42374.0,0.058999]
[1644763345404,0.331514,42375.0,42374.0,0.058999]
[1644763345606,0.331514,42375.0,42369.0,0.4187346]
[1644763345607,0.331514,42375.0,42371.0,0.25078961]
[1644763345802,0.331514,42374.0,42371.0,0.25078961]
[1644763346006,0.03426231,42376.0,42371.0,0.25078961]
[1644763346203,0.331514,42375.0,42371.0,0.25078961]
[1644763347405,0.03426231,42376.0,42370.0,0.30979461]
[1644763347604,0.331514,42375.0,42371.0,0.25078961]
[1644763347805,0.03426231,42376.0,42371.0,0.25078961]
[1644763348004,0.331514,42375.0,42371.0,0.25078961]
[1644763348253,0.331514,42374.0,42371.0,0.25078961]
[1644763348555,0.331514,42375.0,42371.0,0.25078961]
[1644763348956,0.631514,42375.0,42368.0,0.25124997]
[1644763349154,0.631514,42375.0,42368.0,0.00046036]
[1644763349155,0.331514,42373.0,42368.0,0.00046036]
[1644763349353,0.431514,42373.0,42368.0,0.00046036]
[1644763349754,0.06509753,42369.0,42368.0,0.00046036]
[1644763349955,0.60358809,42369.0,42368.0,0.00046036]
[1644763350353,0.331514,42368.0,42366.0,0.00046037]
[1644763350759,0.331514,42367.0,42366.0,0.00046037]
[1644763350955,0.27207409,42369.0,42366.0,0.00046037]
[1644763351162,0.331514,42368.0,42366.0,0.00046037]
[1644763351455,0.27207409,42369.0,42366.0,0.059011]
[1644763351654,0.331514,42368.0,42366.0,0.059011]
[1644763351854,0.27207409,42369.0,42366.0,0.059011]
[1644763352102,0.331514,42368.0,42366.0,0.059011]
[1644763352605,0.331514,42368.0,42365.0,0.059013]
[1644763352802,0.331514,42368.0,42365.0,0.05947338]
[1644763353706,0.331514,42368.0,42365.0,0.00046038]
[1644763353904,0.331514,42368.0,42364.0,0.00017846]
[1644763354104,0.331514,42368.0,42364.0,0.00049183]
[1644763354304,0.331514,42368.0,42365.0,0.00163618]
[1644763354504,0.331514,42368.0,42365.0,0.00181464]
[1644763354904,0.331514,42368.0,42365.0,0.06082764]
[1644763355106,0.331514,42368.0,42365.0,0.00181464]
[1644763355307,0.331514,42368.0,42365.0,0.00163618]
[1644763355308,0.431514,42368.0,42365.0,0.00163618]
[1644763355755,0.431514,42368.0,42365.0,0.00181464]
[1644763355956,0.331514,42368.0,42365.0,0.00181464]
[1644763356156,0.70569293,42368.0,42365.0,0.00181464]
[1644763356360,0.70569293,42368.0,42365.0,0.00163618]
[1644763356656,0.6643702,42368.0,42365.0,0.00163618]
[1644763356856,0.6053512,42368.0,42365.0,0.00181464]
[1644763357056,0.331514,42368.0,42365.0,0.00181464]
[1644763357256,0.27207409,42369.0,42365.0,0.00181464]
[1644763357257,0.05858778,42369.0,42365.0,0.00181464]
[1644763357456,0.2962,42373.0,42365.0,0.00181464]
[1644763357457,0.331514,42372.0,42365.0,0.00181464]
[1644763357657,0.331514,42372.0,42365.0,0.00163618]
[1644763357957,0.331514,42372.0,42365.0,0.06082164]
[1644763358157,0.331514,42372.0,42367.0,0.059004]
[1644763358158,0.25781361,42372.0,42367.0,0.059004]
[1644763358656,0.27792144,42375.0,42367.0,0.059004]
[1644763358860,0.6145,42377.0,42367.0,0.1184998]
[1644763359062,0.331514,42375.0,42367.0,0.10804369]
[1644763359257,0.21446438,42379.0,42370.0,0.059001]
[1644763359513,0.331514,42375.0,42370.0,0.05664028]
[1644763359909,0.07853037,42373.0,42370.0,0.05664028]
[1644763360109,0.331514,42372.0,42368.0,0.00049181]
[1644763360303,0.331514,42372.0,42370.0,0.059006]
[1644763360507,0.07853037,42373.0,42370.0,0.059006]
[1644763360707,0.331514,42372.0,42370.0,0.05719136]
[1644763361308,0.07853037,42373.0,42370.0,0.05719136]
[1644763361503,0.331514,42372.0,42370.0,0.05719136]
[1644763361709,0.07853037,42373.0,42370.0,0.05719136]
[1644763361905,0.331514,42372.0,42370.0,0.05719136]
[1644763362104,0.07853037,42373.0,42370.0,0.05719136]
[1644763362306,0.331514,42372.0,42370.0,0.05719136]
[1644763362505,0.07853037,42373.0,42370.0,0.05719136]
[1644763362704,0.331514,42372.0,42370.0,0.05719136]
[1644763362907,0.07853037,42373.0,42370.0,0.05719136]
[1644763363108,0.331514,42372.0,42370.0,0.05719136]
[1644763363357,0.07853037,42373.0,42370.0,0.05719136]
[1644763363558,0.33119837,42372.0,42370.0,0.05719136]
[1644763363757,0.07853037,42373.0,42370.0,0.05719136]
[1644763363957,0.331578,42372.0,42370.0,0.05719136]
[1644763364159,0.07853037,42373.0,42370.0,0.05719136]
[1644763364362,0.331578,42372.0,42370.0,0.05719136]
[1644763364557,0.07853037,42373.0,42370.0,0.05719136]
[1644763364759,0.331578,42372.0,42370.0,0.05719136]
[1644763364958,0.331578,42371.0,42370.0,0.05719136]
[1644763365160,0.07853037,42373.0,42370.0,0.05719136]
[1644763365360,0.331578,42372.0,42370.0,0.05719136]
[1644763365964,0.431578,42372.0,42371.0,6.017e-05]
[1644763366167,0.431578,42372.0,42365.0,0.118015]
[1644763366168,0.17120262,42368.0,42364.0,0.6516081]
[1644763366367,0.331578,42367.0,42364.0,0.00017846]
[1644763366561,0.20957881,42366.0,42362.0,0.3007366]
[1644763366865,0.07532291,42365.0,42363.0,0.3007366]
[1644763367109,0.20957881,42366.0,42363.0,0.3597516]
[1644763367312,0.20957881,42366.0,42364.0,0.3007366]
[1644763367509,0.17120262,42368.0,42365.0,0.3007366]
[1644763368107,0.17120262,42368.0,42365.0,0.3597436]
[1644763368309,0.17120262,42368.0,42365.0,0.4187506]
[1644763368509,0.17120262,42368.0,42366.0,0.3007366]
[1644763369414,0.17120262,42368.0,42367.0,0.059004]
[1644763370011,0.50278062,42368.0,42367.0,0.059004]
[1644763370213,0.50278062,42368.0,42365.0,0.00049182]
[1644763370514,0.17120262,42368.0,42366.0,0.05901]
[1644763372964,0.17120262,42368.0,42366.0,0.3597466]
[1644763373964,0.17120262,42368.0,42366.0,0.63088772]
[1644763374164,0.17120262,42368.0,42367.0,0.27295836]
[1644763374629,0.17120262,42368.0,42366.0,0.3597466]
[1644763374826,0.17120262,42368.0,42366.0,0.4187526]
[1644763376521,0.17120262,42368.0,42366.0,0.3597466]
[1644763377523,0.4687921,42368.0,42366.0,0.3597466]
[1644763377727,0.331578,42367.0,42365.0,0.00049182]
[1644763377925,0.331578,42367.0,42363.0,0.00017179]
[1644763377926,0.19854338,42366.0,42363.0,0.00017179]
[1644763378128,0.19854338,42366.0,42365.0,0.00049182]
[1644763378359,0.53012138,42366.0,42365.0,0.00049182]
[1644763379161,0.331578,42365.0,42362.0,0.00017179]
[1644763379358,0.30125192,42361.0,42360.0,0.30090839]
[1644763379557,0.30125192,42361.0,42359.0,0.30090839]
[1644763379762,0.30125192,42361.0,42359.0,0.3007366]
[1644763380560,0.30125192,42361.0,42358.0,0.21820579]
[1644763380561,0.30125192,42361.0,42360.0,0.3007366]
[1644763380760,0.30125192,42361.0,42359.0,0.30090839]
[1644763380961,0.30125192,42361.0,42359.0,0.3007366]
[1644763381162,0.21234488,42361.0,42360.0,0.3597576]
[1644763382411,0.21234488,42361.0,42360.0,0.3596297]
[1644763382909,0.21234488,42361.0,42360.0,0.0588931]
[1644763383109,0.21234488,42361.0,42360.0,0.35997169]
[1644763384111,0.21340524,42361.0,42360.0,0.35997169]
[1644763384511,0.18575982,42361.0,42360.0,0.36192301]
[1644763385112,0.18575982,42361.0,42360.0,0.06084442]
[1644763386256,0.00106036,42361.0,42360.0,0.06084442]
[1644763388464,0.33263836,42361.0,42360.0,0.00195132]
[1644763389265,0.33263836,42361.0,42356.0,0.30123229]
[1644763389519,0.33263836,42361.0,42357.0,0.059026]
[1644763389523,0.00106036,42361.0,42357.0,0.059026]
[1644763389709,0.331578,42360.0,42357.0,0.059026]
[1644763389912,0.33263836,42360.0,42357.0,0.00017179]
[1644763390113,0.33263836,42360.0,42355.0,0.30123229]
[1644763390308,0.00106036,42360.0,42355.0,0.3010605]
[1644763391415,0.331578,42359.0,42355.0,0.00031643]
[1644763391813,0.431578,42359.0,42355.0,0.00031643]
[1644763392013,0.43263836,42359.0,42355.0,0.00048822]
[1644763392211,0.331578,42357.0,42355.0,0.00031643]
[1644763392412,0.07067755,42356.0,42353.0,0.00017179]
[1644763392614,0.40225555,42356.0,42355.0,0.00031644]
[1644763392812,0.50225555,42356.0,42355.0,0.00031644]
[1644763393012,0.50331591,42356.0,42355.0,0.00031644]
[1644763393662,0.331578,42355.0,42353.0,0.00017179]
[1644763393861,0.431578,42355.0,42353.0,0.00031645]
[1644763394062,0.43263836,42355.0,42353.0,0.00031645]
[1644763394460,0.62972192,42355.0,42353.0,0.00031645]
[1644763394864,0.68876392,42355.0,42352.0,0.00216142]
[1644763395064,0.68876392,42355.0,42352.0,0.00265183]
[1644763395065,0.331578,42354.0,42352.0,0.00265183]
[1644763395267,0.431578,42354.0,42352.0,0.00248004]
[1644763396065,0.43263836,42354.0,42352.0,0.00198963]
[1644763399311,0.43263836,42354.0,42353.0,0.00162229]
[1644763399513,0.10106036,42354.0,42353.0,0.00162229]
[1644763399911,0.00106036,42354.0,42353.0,0.00162229]
[1644763400316,0.33263836,42354.0,42353.0,0.00162229]
[1644763400617,0.33263836,42354.0,42351.0,0.01368986]
[1644763400618,0.00038347,42352.0,42351.0,0.01368986]
[1644763400858,0.00038347,42352.0,42351.0,0.0132]
[1644763401056,0.00144383,42352.0,42351.0,0.01368986]
[1644763402057,0.00144383,42352.0,42351.0,0.0132]
[1644763403959,0.27544781,42352.0,42351.0,0.0132]
[1644763406912,0.60702581,42352.0,42351.0,0.0132]
[1644763407112,0.27544781,42352.0,42351.0,0.0132]
[1644763407312,0.37544781,42352.0,42351.0,0.0132]
[1644763407512,0.10144383,42352.0,42351.0,0.0132]
[1644763408360,0.00132085,42352.0,42351.0,0.0132]